Cogmind - Beta 10.2 @@@ ROGUE MODE // 2021.06.06 @ 19:52:55 Player: Plexion Result: Destroyed by 8R-AWN with 8R-AWN's Boregun Performance ------------- Evolutions (0) 0 Regions Visited (3) 600 Robots Destroyed (16) 80 Value Destroyed (313) 313 Prototype IDs (23) 460 Alien Tech Used (0) 0 Bonus (300) 300 TOTAL SCORE: 1753 Bonus ------- Aligned with FarCom 300 Cogmind --------- Core Integrity 0/250 Matter 271/300 Energy 100/100 System Corruption 0% Temperature Cool (0) Movement Walking (240) Ox4 Location -10/Exiles Parts ------- > --- POWER (1) -------- (None) > --- PROPULSION (2) --- Aluminum Leg > --- UTILITY (2) ------ High-capacity Storage Unit > --- WEAPON (2) ------- AWS/Gauss > --- INVENTORY (12) --- Light Assault Rifle Light Assault Rifle Light Assault Rifle Light Assault Rifle Light Assault Rifle Peak State ------------ > --- POWER ------------ (None) > --- PROPULSION ------- Aluminum Leg Aluminum Leg > --- UTILITY ---------- High-capacity Storage Unit Light Armor Plating > --- WEAPON ----------- AWS/Gauss > --- INVENTORY -------- Reinforced Deuterium Engine Reinforced Deuterium Engine Light Fission Core Aluminum Leg Light Assault Rifle Light Assault Rifle Light Assault Rifle Light Assault Rifle Light Assault Rifle [Rating: 21] Favorites ----------- Power Light Ion Engine Engine Light Ion Engine Propulsion Aluminum Leg Treads Light Treads Leg Aluminum Leg Utility Large Storage Unit Storage Large Storage Unit Protection Light Armor Plating Weapon Light Assault Rifle Ballistic Gun Light Assault Rifle Build | -11 -10 -10 -10 ------- Run | Scr Mat Min Exi Slots Evolved . | . . . . Power . | . . . . Propulsion . | . . . . Utility . | . . . . Weapon . | . . . . Parts Attached 19 | 6 5 4 4 Power 2 | 1 1 . . Engine 2 | 1 1 . . Core . | . . . . Reactor . | . . . . Propulsion 5 | 2 . 2 1 Treads 2 | 2 . . . Leg 3 | . . 2 1 Wheel . | . . . . Hover . | . . . . Flight . | . . . . Utility 6 | 1 3 . 2 Device . | . . . . Storage 5 | 1 3 . 1 Processor . | . . . . Hackware . | . . . . Protection 1 | . . . 1 Artifact . | . . . . Weapon 6 | 2 1 2 1 Energy Gun . | . . . . Energy Cannon . | . . . . Ballistic Gun 6 | 2 1 2 1 Ballistic Cannon . | . . . . Launcher . | . . . . Special Weapon . | . . . . Impact Weapon . | . . . . Slashing Weapon . | . . . . Piercing Weapon . | . . . . Special Melee Weapon . | . . . . Unidentified Prototypes . | . . . . Parts Lost 7 | . 2 2 3 Power 2 | . 1 1 . Propulsion 3 | . . 1 2 Utility 1 | . . . 1 Weapon 1 | . 1 . . Highest Loss Streak 3 | . 2 1 3 Average Slot Usage (%) 85 | . 90 85 81 Engine 5 | . 14 4 . Treads 10 | . 28 6 . Leg 16 | . . 17 27 Storage 21 | . 19 28 20 Protection 2 | . . . 5 Ballistic Gun 26 | . 27 28 25 Naked Turns . | . . . . Heaviest Build 45 | 9 37 37 45 Greatest Support 40 | 40 40 40 20 Greatest Overweight (x) 4 | 2 . 3 4 Average Overweight (x) . | . . . 1 Largest Inventory Capacity 18 | 6 16 16 18 Average Capacity 12 | 5 8 16 13 Most Carried 11 | 2 4 8 11 Average Carried 5 | 1 2 6 7 Final Capacity 16 | 6 16 16 12 Final Carried 7 | 2 4 7 5 Class Distribution -------------------- 51% | Scavenger-Mutant 48% | Mutant Dominant Class ---------------- Mutant | -10/Materials Scavenger-Mutant | -10/Mines Scavenger-Mutant | -10/Exiles Resources | -11 -10 -10 -10 ----------- Run | Scr Mat Min Exi Matter Collected 481 | 181 188 112 . Remotely . | . . . . Salvage Created 464 | . 282 117 65 Parts 38 | . 19 7 12 Haulers Intercepted 1 | . 1 . . Recyclers Shooed . | . . . . Parts Field Recycled . | . . . . Retrieved Matter . | . . . . Parts Self-Destructed . | . . . . Prevented . | . . . . Kills | -11 -10 -10 -10 ------- Run | Scr Mat Min Exi Combat Hostiles Destroyed 15 | . 9 4 2 Guns 15 | . 9 4 2 Classes Destroyed 5 | . 3 . 2 Hauler 1 | . 1 . . Swarmer 7 | . 5 2 . Grunt 6 | . 4 2 . Zionite 1 | . . . 1 Assembled 2 | . . . 2 Best Kill Streak 4 | . 2 2 4 Combat Bots Only 2 | . 2 2 2 Max Kills in Single Turn 1 | . 1 1 1 Gunslinging . | . . . . Exploded . | . . . . Melee . | . . . . Uniques/NPCs Destroyed 1 | . . . 1 EX-BIN (-10/Exiles) Combat | -11 -10 -10 -10 -------- Run | Scr Mat Min Exi Damage Taken 1395 | . 471 381 543 Core 264 | . 76 72 116 Absorbed by Shields . | . . . . Core Remaining (%) 100 | 100 . . . Volleys Fired 78 | . 55 22 1 Largest 2 | . 2 2 2 Hottest 40 | . 40 40 40 Shots Fired 218 | . 109 44 65 Gun 218 | . 109 44 65 Cannon . | . . . . Launcher . | . . . . Special . | . . . . Kinetic 218 | . 109 44 65 Thermal . | . . . . Explosive . | . . . . Electromagnetic . | . . . . Robot Hit Streak 16 | . 9 16 14 Robot Miss Streak 3 | . 3 2 2 Penetration Max . | . . . . Secondary Targets . | . . . . Autonomous 63 | . . . 63 Shots Hit Robots 155 | . 67 34 54 Core Hits 44 | . 22 11 11 Critical Hits 1 | . 1 . . Critical Kills . | . . . . Critical Parts Destroyed 1 | . 1 . . Melee Attacks . | . . . . Impact . | . . . . Slashing . | . . . . Piercing . | . . . . Sneak Attacks . | . . . . Combat Hostiles . | . . . . Follow-up Attacks . | . . . . Damage Inflicted 2281 | . 465 255 1561 Guns 2281 | . 465 255 1561 Cannons . | . . . . Explosions . | . . . . Melee . | . . . . Ramming . | . . . . Kinetic 2281 | . 465 255 1561 Thermal . | . . . . Explosive . | . . . . Electromagnetic . | . . . . Impact . | . . . . Slashing . | . . . . Piercing . | . . . . Highest Corruption . | . . . . Average Corruption . | . . . . Corruption Purged . | . . . . Overload Shots . | . . . . Overflow Damage . | . . . . Projectiles . | . . . . Explosions . | . . . . Melee . | . . . . Knockbacks . | . . . . Impact . | . . . . Kinetic . | . . . . Secondary . | . . . . Self-Inflicted Damage . | . . . . Shots . | . . . . Rammed . | . . . . Targets Rammed . | . . . . Kicked . | . . . . Crushed . | . . . . Highest Temperature 18 | . 12 18 . Average Temperature 8 | . 6 9 . Received Heat Transfer 204 | . 96 108 . Siege Activations . | . . . . Robots Corrupted . | . . . . Combat Hostiles . | . . . . Parts Fried . | . . . . Impact Corruptions . | . . . . Robots Melted . | . . . . Combat Hostiles . | . . . . Parts Melted . | . . . . Heat Transferred . | . . . . Parts Sabotaged . | . . . . Parts Stolen . | . . . . Parts Stripped . | . . . . Power Chain Reactions . | . . . . Missiles Intercepted . | . . . . Alert | -11 -10 -10 -10 ------- Run | Scr Mat Min Exi Peak Influence 180 | . 180 109 . Initial 39 | . . 39 . Average 77 | . 75 93 . Maximum Alert Level . | . . . . Low Security (%) 100 | 100 100 100 . Level 1 . | . . . . Level 2 . | . . . . Level 3 . | . . . . Level 4 . | . . . . Level 5 . | . . . . High Security . | . . . . Max Security . | . . . . Squads Dispatched 4 | . 4 . . Investigation 2 | . 2 . . Extermination . | . . . . Reinforcement 2 | . 2 . . Assault . | . . . . Garrison . | . . . . Intercept . | . . . . Construction Impeded . | . . . . Haulers Reinforced . | . . . . Stealth | -11 -10 -10 -10 --------- Run | Scr Mat Min Exi Distress Signals 1 | . 1 . . Communications Jammed . | . . . . Distress Signals . | . . . . Times Spotted 26 | . 18 6 2 Peak Tracking Total 12 | . 4 3 12 Tactical Retreats 3 | . 2 . 1 Traps | -11 -10 -10 -10 ------- Run | Scr Mat Min Exi Traps Triggered 2 | . 2 . . Indirectly . | . . . . Trap Hack Attempts . | . . . . Triggered . | . . . . Disarmed . | . . . . Reprogrammed . | . . . . Reused . | . . . . Traps Extracted . | . . . . Installed . | . . . . Triggered . | . . . . Exploded 3 | . . . 3 Machines | -11 -10 -10 -10 ---------- Run | Scr Mat Min Exi Machines Disabled 6 | . . . 6 Max in Single Turn 1 | . . . 1 Machines Sabotaged . | . . . . Garrisons Compromised . | . . . . Overloaded Fab Kills . | . . . . Fab Network Shutdowns . | . . . . Hacking | -11 -10 -10 -10 --------- Run | Scr Mat Min Exi Machines Accessed 3 | . 1 . 2 Terminals 1 | . 1 . . Fabricators . | . . . . Repair Stations . | . . . . Recycling Units . | . . . . Scanalyzers . | . . . . Garrison Access . | . . . . Total Hacks 5 | . 3 . 2 Successful 3 | . 1 . 2 Failed 2 | . 2 . . Catastrophic 2 | . 2 . . Database Lockouts . | . . . . Manual 2 | . 1 . 1 Terminals 3 | . 3 . . Fabricators . | . . . . Repair Stations . | . . . . Recycling Units . | . . . . Scanalyzers . | . . . . Garrison Access . | . . . . Terminal Hacks 3 | . 1 . 2 Record 1 | . . . 1 Recall Investigation 1 | . 1 . . EX-Prototype ID Bank 1 | . . . 1 Fabricator Hacks . | . . . . Repair Station Hacks . | . . . . Recycling Unit Hacks . | . . . . Scanalyzer . | . . . . Garrison Access Hacks . | . . . . Unauthorized Hacks . | . . . . Terminals . | . . . . Fabricators . | . . . . Repair Stations . | . . . . Recycling Units . | . . . . Scanalyzers . | . . . . Garrison Access . | . . . . Data Cores Recovered . | . . . . Used . | . . . . Hacking Detections 1 | . 1 . . Full Trace Events . | . . . . Feedback Events . | . . . . Feedback Blocked . | . . . . Robot Schematics Acquired . | . . . . Robots Built . | . . . . Matter . | . . . . Time . | . . . . Total Robot Build Rating . | . . . . Part Schematics Acquired . | . . . . Parts Built . | . . . . Matter . | . . . . Time . | . . . . Total Part Build Rating . | . . . . Parts Repaired . | . . . . Time . | . . . . Parts Recycled . | . . . . Recycled Matter . | . . . . Retrieved Matter . | . . . . Retrieved Components . | . . . . Parts Scanalyzed . | . . . . Part Schematics Acquired . | . . . . Parts Damaged . | . . . . Bothacking | -11 -10 -10 -10 ------------ Run | Scr Mat Min Exi Used RIF Installer . | . . . . Robots Hacked . | . . . . Non-combat . | . . . . Combat . | . . . . Robot Hacks Applied . | . . . . Relay Couplers Released . | . . . . Robots Rewired . | . . . . Allies Hacked . | . . . . Hacks Repelled . | . . . . Allies | -11 -10 -10 -10 -------- Run | Scr Mat Min Exi Total Allies 1 | . . 1 . Largest Group 1 | . . 1 1 Highest-Rated Group 31 | . . 31 31 Highest-Rated Ally 31 | . . 31 31 Total Orders . | . . . . Ally Attacks . | . . . . Total Damage . | . . . . Kills . | . . . . Allies Corrupted . | . . . . Allies Melted . | . . . . Intel | -11 -10 -10 -10 ------- Run | Scr Mat Min Exi Robot Analysis Total . | . . . . Derelict Logs Recovered 2 | . . 2 . Drone Launches . | . . . . Drone Recoveries . | . . . . Exploration | -11 -10 -10 -10 ------------- Run | Scr Mat Min Exi Turns Passed 2120 | 67 700 403 950 Spaces Moved 1176 | 38 343 208 587 Core 12 | 12 . . . Treads 414 | 26 343 45 . Legs 750 | . . 163 587 Wheels . | . . . . Hover . | . . . . Flight . | . . . . Fastest Speed 50 | 50 160 150 150 Average Speed 155 | 150 160 156 152 Slowest Speed 240 | 160 160 210 240 Overloaded Moves . | . . . . Propulsion Burnouts . | . . . . Robots Hopped . | . . . . Cave-ins Triggered . | . . . . Exploration Rate (%) 48 | 3 78 41 70 Regions Visited 3 Branch Regions 2 Pre-discovered Areas 2 | . . 1 1 Known Exits Taken . | . . . . Unknown Exits Taken 3 | 1 1 1 . Scrap Searched . | . . . . Spaces Dug . | . . . . Terrain Destroyed 18 | . . . 18 Melee . | . . . . Projectile 18 | . . . 18 AOE . | . . . . Terrain Rammed . | . . . . Walls Destroyed . | . . . . Machines Disabled . | . . . . Actions | -11 -10 -10 -10 --------- Run | Scr Mat Min Exi Total 1344 | 45 406 250 643 Wait 51 | . 2 12 37 Move 1173 | 37 342 207 587 Hop . | . . . . Pick Up 10 | 2 2 2 4 Fast Attach 9 | 6 1 2 . Attach 5 | . 2 . 3 Detach 4 | . . 1 3 Swap 5 | . 2 2 1 Drop 9 | . . 2 7 Fire 78 | . 55 22 1 Melee . | . . . . Ram . | . . . . Kick . | . . . . Crush . | . . . . Escape Stasis . | . . . . Rewire . | . . . . Trap . | . . . . Miscellaneous . | . . . . Route ------- -11/Scrapyard -10/Materials (discovered 3 exits: [*Mat x2] / [*Min]) -10/Mines -10/Exiles (discovered 1 exit: [*Min]) History --------- Turn | Location | Event 13 | -11/Scrapyard | Discovered new exit (range 16) 68 | -11/Scrapyard | Entered Materials 255 | -10/Materials | Discovered new exit (range 9) 316 | -10/Materials | Build established: Mutant 389 | -10/Materials | Discovered new exit (range 3) 736 | -10/Materials | Discovered new exit (range 12) 768 | -10/Materials | Entered Mines 870 | -10/Mines | Core integrity fell below 50% 955 | -10/Mines | Learned Materials emergency access door positions 989 | -10/Mines | Escorted by a lone wolf Derelict 1009 | -10/Mines | Learned location of Storage (-7) 1124 | -10/Mines | Learned Materials terminal intel 1165 | -10/Mines | Deemed a non-threat by the Exiles lab entrance 1165 | -10/Mines | Discovered new exit (range 5) 1171 | -10/Mines | Entered Exiles 1171 | -10/Exiles | Accompanied by 1 ally 1207 | -10/Exiles | Met 8R-AWN 1211 | -10/Exiles | Build established: Scavenger-Mutant 1233 | -10/Exiles | Met EX-HEX 1308 | -10/Exiles | Met EX-DEC 1335 | -10/Exiles | Learned location of Zion (-6) 1431 | -10/Exiles | Met EX-BIN 1452 | -10/Exiles | Aligned with FarCom system 1453 | -10/Exiles | Given EX-Vault access code 1489 | -10/Exiles | Opened EX-Vault 1503 | -10/Exiles | Found AWS/Gauss 1538 | -10/Exiles | Warned to stay clear of 0b10 Research branches 1706 | -10/Exiles | Discovered new exit (range 14) 1985 | -10/Exiles | Attacked by the Exiles 1999 | -10/Exiles | Destroyed EX-BIN 2100 | -10/Exiles | Core integrity fell below 20% 2121 | -10/Exiles | Destroyed by 8R-AWN with 8R-AWN's Boregun Last Messages --------------- 02112_ HV Slug penetrates Wall. 02114_ Slug penetrates 8R-AWN. 02114_ Penetrated by HV Slug. 02114_ HV Slug penetrates Wall. 02114_ Penetrated by HV Slug. 02114_ HV Slug penetrates Wall. 02117_ Slug penetrates 8R-AWN. 02117_ Penetrated by HV Slug. 02117_ Aluminum Leg destroyed. 02117_ HV Slug penetrates Wall. 02117_ Penetrated by HV Slug. 02117_ HV Slug penetrates Wall. 02119_ Penetrated by HV Slug. 02119_ HV Slug penetrates Wall. 02119_ HV Slug penetrates Machine. 02119_ HV Slug penetrates Wall. 02120_ Slug penetrates 8R-AWN. 02121_ Penetrated by HV Slug. 02121_ HV Slug penetrates Wall. 02121_ Penetrated by HV Slug. Map ----- +----------------------------------------------------+ | ?????????????????????????????????????????????????? | | ?????????????????????????????????????????????????? | | ?????????????????????????????????????????????????? | | ???????????????? ???????????????????????????????? | | ??????????????# ??????????????????????????????? | | ??????????????# < ??????????????????????????????? | | ??????????????# ?????????????????????????????? | | ??????????????# ?????????????????????????????? | | ??????????????# ????????????????????????????? | | ???????????????# ????????????????????????????? | | ???????????????# #???????????????????????????? | | ????????????????# ?????????????#######???????? | | ????????????????# #######??????#!!! "#???????? | | ????????????????# #""##?????# "#???????? | | ?????????????????# #?????# "#???????? | | ?????????????????##" ! ####?## ""#???????? | | ?????????????????#"" !! #"###" "#???????? | | ?????????????????#### ! #" ""#???????? | | ????????????????????## # " ##????????? | | ?????????????????????#"## " ????????? | | ?????????????????????##?#### "##???????? | | ???????????????????????????### "#???????? | | ????????????????????#########" ###??????? | | ????????????????????#; !! " "" ##?????? | | ?????????????????????#! ;;#"" * """"##? | | ?????????????????????#! @ g ; ;; % "## | | ?????????????????????#! ;; ##" % | | ?????????????????????# ! " ;######"# | | ?????????????????????#;;########????#### | | ???????????????????# ###??????????????### * | | ???????????????????# #???????????????????### | | ???????????????????##??????????????????????## | | ????????????????????????????????????????????## | | ?????????????????????????????????????????????##" | | ??????????????????????????????????????????????#""" | | ?????????????????????????????????????????????##" | | ?????????????????????????????????????????????#"" | | ?????????????????????????????????????????????#""" | | ????????????????????????????????????????????#""" | | ????????????????????????????????????????????#""" | | ????????????????????????????????????????????#"" | | ????????????????????????????????????????????#""" | | ????????????????????????????????????????????#"" | | ?????????????????????????????????????????????#"" | | ?????????????????????????????????????????????#"""" | | ??????????????????????????????????????????????# | | ??????????????????????????????????????????????#" | | ??????????????????????????????????????????????#""" | | ??????????????????????????????????????????????#"" | | ???????????????????????????????????????????????" | +----------------------------------------------------+ Best States ------------- Heat Dissipation 25 Energy Generation 10 Energy Capacity 125 Matter Stores 300 Matter Capacity 300 Sight Range 16 Terrain Scan Density 10 Armor Coverage 150 Evasion (%) 40 Recoil Reduction 2 Item Schematics ----------------- None Robot Schematics ------------------ None Fabricated ------------ Nothing Alien Tech Used ----------------- None Achievements -------------- None Challenges ------------ None Game ------ Seed SubatomicBoreShield Manual? 0 Play Time 00:12:12 Cumulative 186.7 hours Start 2021.06.06 @ 19:44:18 End 2021.06.06 @ 19:52:55 Sessions 1 Manual Loads 0 Difficulty Rogue Special Mode None Game No. 234 Rogue 147 Adventurer 87 Explorer 0 Win Type - Total 4 Types 3/0/0/1/0/0/0/0/0 Lore% 67 Gallery% 74 Achievement% 61 Wizard Run 0 Options --------- ASCII 0 Keyboard 1 Movement Numpad Keybinds 0 Fullscreen 1 Font 18/Smallcaps Map View 76x50 Tactical HUD 1 Map Filters NONE Filters NONE Steam 1 RUN: c09be5e5-7456-4b7e-9eb7-f1cd272e6256